fUSD/lending_fUSD_20250103
["ID","MTS","AMOUNT","RATE_DAILY","PERIOD"]
[347511626,1735895461460,-500.0,9.541e-05,2]
[347511627,1735895461470,-500.0,9.541e-05,2]
[347511628,1735895461480,-500.0,9.541e-05,2]
[347511629,1735895461489,-571.49,9.541e-05,2]
[347511630,1735895461499,-500.0,9.541e-05,2]
[347511631,1735895461508,-500.0,9.541e-05,2]
[347511632,1735895461518,-500.0,9.541e-05,2]
[347511633,1735895461527,-500.0,9.541e-05,2]
[347511634,1735895461536,-500.0,9.541e-05,2]
[347511635,1735895461546,-500.0,9.541e-05,2]
[347511636,1735895461555,-500.0,9.541e-05,2]
[347511637,1735895461564,-500.0,9.541e-05,2]
[347511638,1735895461573,-1000.46,9.541e-05,2]
[347511639,1735895461584,-1105.16,9.541e-05,2]
[347511640,1735895461594,-500.0,9.541e-05,2]
[347511641,1735895461605,-500.0,9.541e-05,2]
[347511642,1735895461616,-766.59,9.541e-05,2]
[347511643,1735895461625,-500.0,9.541e-05,2]
[347511644,1735895461635,-500.0,9.541e-05,2]
[347511645,1735895461644,-500.0,9.541e-05,2]
[347511646,1735895461653,-500.0,9.541e-05,2]
[347511647,1735895461664,-500.0,9.541e-05,2]
[347511648,1735895461673,-500.0,9.541e-05,2]
[347511649,1735895461682,-500.0,9.541e-05,2]
[347511650,1735895461692,-828.99,9.541e-05,2]
[347511651,1735895461703,-500.0,9.541e-05,2]
[347511652,1735895461713,-500.0,9.541e-05,2]
[347511653,1735895461723,-500.0,9.541e-05,2]
[347511654,1735895461734,-851.47,9.541e-05,2]
[347511655,1735895461745,-1904.94,9.541e-05,2]
[347511656,1735895461755,-1567.32,9.541e-05,2]
[347511657,1735895461765,-500.0,9.541e-05,2]
[347511658,1735895461776,-2737.7,9.541e-05,2]
[347511659,1735895461786,-704.8,9.541e-05,2]
[347511660,1735895461796,-500.0,9.541e-05,2]
[347511661,1735895461806,-1275.3,9.541e-05,2]
[347511662,1735895461815,-500.34730987,9.541e-05,2]
[347511663,1735895461824,-754.55,9.541e-05,2]
[347511664,1735895461833,-167.47304106,9.541e-05,2]
[347511665,1735895461842,-500.0,9.541e-05,2]
[347511666,1735895461851,-500.0,9.541e-05,2]
[347511667,1735895461861,-500.0,9.541e-05,2]
[347511668,1735895461870,-500.0,9.541e-05,2]
[347511669,1735895461879,-1402.71,9.541e-05,2]
[347511670,1735895461888,-500.0,9.541e-05,2]
[347511671,1735895461898,-500.0,9.541e-05,2]
[347511672,1735895461907,-500.0,9.541e-05,2]
[347511673,1735895461916,-500.0,9.541e-05,2]
[347511674,1735895461926,-150.0,9.541e-05,2]
[347511675,1735895461938,-500.0,9.541e-05,2]
[347511676,1735895461949,-500.0,9.541e-05,2]
[347511677,1735895461960,-5000.0,9.541e-05,2]
[347511678,1735895461971,-1489.4,9.541e-05,2]
[347511679,1735895461981,-572.22,9.541e-05,2]
[347511680,1735895461992,-500.0,9.541e-05,2]
[347511681,1735895462003,-1259.08,9.541e-05,2]
[347511682,1735895462013,-1212.74,9.541e-05,2]
[347511683,1735895462022,-500.0,9.541e-05,2]
[347511684,1735895462031,-500.0,9.541e-05,2]
[347511685,1735895462041,-500.0,9.541e-05,2]
[347511686,1735895462051,-1898.68,9.541e-05,2]
[347511687,1735895462060,-500.0,9.541e-05,2]
[347511688,1735895462070,-509.4,9.541e-05,2]
[347511689,1735895462080,-500.0,9.541e-05,2]
[347511690,1735895462090,-500.0,9.541e-05,2]
[347511691,1735895462100,-500.0,9.541e-05,2]
[347511692,1735895462110,-500.0,9.541e-05,2]
[347511693,1735895462119,-500.0,9.541e-05,2]
[347511694,1735895462129,-500.0,9.541e-05,2]
[347511695,1735895462139,-1020.64,9.541e-05,2]
[347511696,1735895462149,-4127.1,9.541e-05,2]
[347511697,1735895462161,-500.0,9.541e-05,2]
[347511698,1735895462173,-859.41,9.541e-05,2]
[347511699,1735895462183,-3098.25,9.541e-05,2]
[347511700,1735895462193,-1767.9,9.541e-05,2]
[347511701,1735895462203,-3220.01,9.541e-05,2]
[347511702,1735895462217,-500.0,9.541e-05,2]
[347511703,1735895462227,-500.0,9.541e-05,2]
[347511704,1735895462237,-1212.83,9.541e-05,2]
[347511705,1735895462246,-500.0,9.541e-05,2]
[347511706,1735895462256,-3641.19,9.541e-05,2]
[347511707,1735895462266,-790.02,9.541e-05,2]
[347511708,1735895462276,-500.0,9.541e-05,2]
[347511709,1735895462286,-2105.56,9.541e-05,2]
[347511710,1735895462296,-500.0,9.541e-05,2]
[347511711,1735895462305,-500.0,9.541e-05,2]
[347511712,1735895462315,-670.38,9.541e-05,2]
[347511713,1735895462324,-715.26,9.541e-05,2]
[347511714,1735895462334,-3210.38,9.541e-05,2]
[347511715,1735895462344,-3379.58,9.541e-05,2]
[347511716,1735895462354,-3356.61,9.541e-05,2]
[347511717,1735895462363,-4843.66,9.541e-05,2]
[347511718,1735895462373,-2585.21,9.541e-05,2]
[347511719,1735895462382,-11016.03,9.541e-05,2]
[347511720,1735895462392,-3123.86,9.541e-05,2]
[347511721,1735895462404,-2024.04,9.541e-05,2]
[347511722,1735895462413,-1382.47,9.541e-05,2]
[347511723,1735895462424,-745.48,9.541e-05,2]
[347511724,1735895462434,-1683.19,9.541e-05,2]
[347511725,1735895462444,-500.0,9.541e-05,2]
[347511726,1735895462454,-2109.17,9.541e-05,2]
[347511727,1735895462467,-3049.47,9.542e-05,2]
[347511728,1735895462477,-500.0,9.542e-05,2]
[347511729,1735895462486,-3098.25,9.542e-05,2]
[347511730,1735895462496,-3049.47,9.543e-05,2]
[347511731,1735895462506,-500.0,9.543e-05,2]
[347511732,1735895462518,-3049.47,9.544e-05,2]
[347511733,1735895462527,-500.0,9.544e-05,2]
[347511734,1735895462537,-3098.25,9.544e-05,2]
[347511735,1735895462548,-3098.25,9.544e-05,2]
[347511736,1735895462558,-288829.83185456,9.545e-05,2]
[347511737,1735895463467,-2263.41957,9.545e-05,2]
[347511738,1735895463479,-1526.265,9.545e-05,2]
[347511739,1735895463490,-22238.38492212,9.545e-05,2]
[347511740,1735895463502,-1546.44499959,9.545e-05,2]
[347511741,1735895463558,-3794.95463155,9.545e-05,2]
[347511742,1735895464695,-1734.15527322,8.999e-05,2]
[347511743,1735895464706,-270.44472678,8.999e-05,2]
[347511744,1735895464715,-427.93985422,9.273e-05,2]
[347511745,1735895464818,-1576.66014578,9.273e-05,2]
[347511746,1735895464828,-33422.23993363,9.545e-05,2]
[347511747,1735895464837,-3049.47,9.545e-05,2]
[347511748,1735895464846,-3049.47,9.545e-05,2]
[347511749,1735895464855,-500.0,9.545e-05,2]
[347511750,1735895464864,-500.0,9.545e-05,2]
[347511751,1735895464872,-1121.66355638,9.545e-05,2]
[347511752,1735895464881,-24484.35657291,9.545e-05,2]
[347511753,1735895464890,-1070.70619385,9.546e-05,3]
[347511754,1735895464900,-3049.47,9.546e-05,2]
[347511755,1735895464909,-500.0,9.546e-05,2]
[347511756,1735895464918,-4660.81,9.546e-05,2]
[347511757,1735895464927,-3911.9,9.546e-05,2]
[347511758,1735895464935,-1396.81,9.546e-05,2]
[347511759,1735895464944,-2970.17,9.546e-05,2]
[347511760,1735895464953,-3227.94,9.546e-05,2]
[347511761,1735895464962,-500.0,9.546e-05,2]
[347511762,1735895464973,-988.79,9.546e-05,2]
[347511763,1735895464983,-425.53715701,9.546e-05,2]
[347511764,1735895464991,-500.0,9.547e-05,2]
[347511765,1735895465000,-792.13,9.547e-05,2]
[347511766,1735895465009,-923.06,9.547e-05,2]
[347511767,1735895465018,-1019.84,9.547e-05,2]
[347511768,1735895465027,-1521.65,9.547e-05,2]
[347511769,1735895465036,-1566.31,9.547e-05,2]
[347511770,1735895465045,-500.0,9.547e-05,2]
[347511771,1735895465054,-500.0,9.547e-05,2]
[347511772,1735895465063,-500.0,9.547e-05,2]
[347511773,1735895465072,-500.0,9.547e-05,2]
[347511774,1735895465081,-827.61,9.547e-05,2]
[347511775,1735895465090,-2780.06,9.547e-05,2]
[347511776,1735895465099,-413.34644044,9.547e-05,2]
[347511777,1735895465233,-975.37355956,9.547e-05,2]
[347511778,1735895465244,-500.0,9.547e-05,2]
[347511779,1735895465253,-1631.81,9.547e-05,2]
[347511780,1735895465262,-263.81644044,9.547e-05,2]
[347511781,1735895465273,-286.03355956,9.547e-05,2]
[347511782,1735895465282,-500.0,9.547e-05,2]
[347511783,1735895465292,-3260.82,9.547e-05,2]
[347511784,1735895465301,-128.11524699,9.547e-05,2]
[347511785,1735895467692,-317.60427185,8.325e-05,2]
[347511786,1735895467702,-1150.70475301,9.547e-05,2]
[347511787,1735895467711,-773.46,9.547e-05,2]
[347511788,1735895467721,-527.93,9.547e-05,2]
[347511789,1735895467729,-500.0,9.547e-05,2]
[347511790,1735895467739,-500.0,9.547e-05,2]
[347511791,1735895467748,-2789.48,9.547e-05,2]
[347511792,1735895467757,-500.0,9.547e-05,2]
[347511793,1735895467766,-500.0,9.547e-05,2]
[347511794,1735895467775,-2092.1,9.547e-05,2]
[347511795,1735895467784,-500.0,9.547e-05,2]
[347511796,1735895467793,-784.91370184,9.547e-05,2]
[347511797,1735895467919,-497.68673365,9.547e-05,2]
[347511798,1735895467930,-74.41956451,9.547e-05,2]
[347511799,1735895467940,-1681.73,9.547e-05,2]
[347511800,1735895467949,-1227.07,9.547e-05,2]
[347511801,1735895467958,-500.0,9.547e-05,2]
[347511802,1735895467968,-1584.38,9.547e-05,2]
[347511803,1735895467977,-1679.44,9.547e-05,2]
[347511804,1735895467986,-500.0,9.547e-05,2]
[347511805,1735895467995,-500.0,9.547e-05,2]
[347511806,1735895468004,-500.0,9.547e-05,2]
[347511807,1735895468013,-791.48,9.547e-05,2]
[347511808,1735895468022,-823.55,9.547e-05,2]
[347511809,1735895468031,-711.98,9.547e-05,2]
[347511810,1735895468040,-2680.82,9.547e-05,2]
[347511811,1735895468049,-500.0,9.547e-05,2]
[347511812,1735895468058,-1240.93,9.547e-05,2]
[347511813,1735895468067,-1890.55,9.547e-05,2]
[347511814,1735895468077,-500.0,9.547e-05,2]
[347511815,1735895468087,-574.84,9.547e-05,2]
[347511816,1735895468096,-500.0,9.547e-05,2]
[347511817,1735895468106,-500.0,9.547e-05,2]
[347511818,1735895468115,-3547.46,9.547e-05,2]
[347511819,1735895468124,-500.0,9.547e-05,2]
[347511820,1735895468133,-500.0,9.547e-05,2]
[347511821,1735895468142,-500.0,9.547e-05,2]
[347511822,1735895468151,-500.0,9.547e-05,2]
[347511823,1735895468162,-500.0,9.547e-05,2]
[347511824,1735895468173,-500.0,9.547e-05,2]
[347511825,1735895468184,-3163.47,9.547e-05,2]
[347511826,1735895468193,-611.29,9.547e-05,2]
[347511827,1735895468203,-583.14,9.547e-05,2]
[347511828,1735895468213,-531.06,9.547e-05,2]
[347511829,1735895468225,-910.69,9.547e-05,2]
[347511830,1735895468235,-500.0,9.547e-05,2]
[347511831,1735895468247,-500.0,9.547e-05,2]
[347511832,1735895468256,-500.0,9.547e-05,2]
[347511833,1735895468266,-500.0,9.547e-05,2]
[347511834,1735895468275,-652.28,9.547e-05,2]
[347511835,1735895468284,-500.0,9.547e-05,2]
[347511836,1735895468293,-682.96,9.547e-05,2]
[347511837,1735895468302,-500.0,9.547e-05,2]
[347511838,1735895468312,-500.0,9.547e-05,2]
[347511839,1735895468321,-691.27,9.547e-05,2]
[347511840,1735895468330,-500.0,9.547e-05,2]
[347511841,1735895468340,-500.0,9.547e-05,2]
[347511842,1735895468349,-1728.05,9.547e-05,2]
[347511843,1735895468358,-500.0,9.547e-05,2]
[347511844,1735895468368,-500.0,9.547e-05,2]
[347511845,1735895468377,-1023.26,9.547e-05,2]
[347511846,1735895468386,-1367.97,9.547e-05,2]
[347511847,1735895468396,-3467.39,9.547e-05,2]
[347511848,1735895468406,-1829.72,9.547e-05,2]
[347511849,1735895468416,-1232.62,9.547e-05,2]
[347511850,1735895468425,-966.33,9.547e-05,2]
[347511851,1735895468435,-2235.53,9.547e-05,2]
[347511852,1735895468445,-967.15,9.547e-05,2]
[347511853,1735895468454,-732.7,9.547e-05,2]
[347511854,1735895468464,-666.51,9.547e-05,2]
[347511855,1735895468474,-1821.66,9.547e-05,2]
[347511856,1735895468483,-500.0,9.547e-05,2]
[347511857,1735895468494,-500.0,9.547e-05,2]
[347511858,1735895468508,-1346.23,9.547e-05,2]
[347511859,1735895468517,-191.18021797,9.547e-05,2]
[347511860,1735895468526,-500.0,9.547e-05,2]
[347511861,1735895468536,-500.0,9.547e-05,2]
[347511862,1735895468545,-500.0,9.547e-05,2]
[347511863,1735895468554,-500.0,9.547e-05,2]
[347511864,1735895468564,-3849.55,9.547e-05,2]
[347511865,1735895468573,-500.0,9.547e-05,2]
[347511866,1735895468582,-500.0,9.547e-05,2]
[347511867,1735895468591,-2265.36,9.547e-05,2]
[347511868,1735895468600,-500.0,9.547e-05,2]
[347511869,1735895468610,-1200.37,9.547e-05,2]
[347511870,1735895468619,-2821.09,9.547e-05,2]
[347511871,1735895468628,-500.0,9.547e-05,2]
[347511872,1735895468637,-500.0,9.547e-05,2]
[347511873,1735895468646,-650.73,9.547e-05,2]
[347511874,1735895468656,-1089.52,9.547e-05,2]
[347511875,1735895468665,-1106.03,9.547e-05,2]
[347511876,1735895468674,-1075.75,9.547e-05,2]
[347511877,1735895468683,-500.0,9.547e-05,2]
[347511878,1735895468692,-1717.61,9.547e-05,2]
[347511879,1735895468701,-500.0,9.547e-05,2]
[347511880,1735895468710,-6393.48,9.547e-05,2]
[347511881,1735895468720,-1343.99,9.547e-05,2]
[347511882,1735895468729,-500.0,9.547e-05,2]
[347511883,1735895468738,-599.4,9.547e-05,2]
[347511884,1735895468747,-1327.15,9.547e-05,2]
[347511885,1735895468756,-615.13,9.547e-05,2]
[347511886,1735895468765,-4289.83,9.547e-05,2]
[347511887,1735895468775,-2766.93,9.547e-05,2]
[347511888,1735895468784,-500.0,9.547e-05,2]
[347511889,1735895468793,-7467.91,9.547e-05,2]
[347511890,1735895468802,-500.0,9.547e-05,2]
[347511891,1735895468811,-2032.97,9.547e-05,2]
[347511892,1735895468821,-1037.33,9.547e-05,2]
[347511893,1735895468830,-2575.71,9.547e-05,2]
[347511894,1735895468839,-3722.95,9.547e-05,2]
[347511895,1735895468848,-555.63,9.547e-05,2]
[347511896,1735895468857,-915.54,9.547e-05,2]
[347511897,1735895468868,-1479.27,9.547e-05,2]
[347511898,1735895468878,-7518.84,9.547e-05,2]
[347511899,1735895468887,-926.09,9.547e-05,2]
[347511900,1735895468896,-1202.25,9.547e-05,2]
[347511901,1735895468905,-24507.97,9.547e-05,2]
[347511902,1735895468914,-500.0,9.547e-05,2]
[347511903,1735895468923,-1115.33,9.547e-05,2]
[347511904,1735895468932,-500.0,9.547e-05,2]
[347511905,1735895468940,-1407.27,9.547e-05,2]
[347511906,1735895468950,-3137.56,9.547e-05,2]
[347511907,1735895468959,-443.29758172,9.547e-05,2]
[347511908,1735895468968,-500.0,9.547e-05,2]
[347511909,1735895468978,-1717.87,9.547e-05,2]
[347511910,1735895468987,-955.82,9.547e-05,2]
[347511911,1735895468996,-500.0,9.547e-05,2]
[347511912,1735895469005,-2990.55,9.547e-05,2]
[347511913,1735895469014,-500.0,9.547e-05,2]
[347511914,1735895469023,-594.36,9.547e-05,2]
[347511915,1735895469032,-1061.91,9.547e-05,2]
[347511916,1735895469041,-1999.88,9.547e-05,2]
[347511917,1735895469050,-500.0,9.547e-05,2]
[347511918,1735895469059,-4910.85,9.547e-05,2]
[347511919,1735895469068,-500.0,9.547e-05,2]
[347511920,1735895469078,-1153.66,9.547e-05,2]
[347511921,1735895469087,-902.7,9.547e-05,2]
[347511922,1735895469096,-2278.56,9.547e-05,2]
[347511923,1735895469105,-649.03,9.547e-05,2]
[347511924,1735895469115,-500.0,9.547e-05,2]
[347511925,1735895469123,-2786.86,9.547e-05,2]
[347511926,1735895469133,-500.0,9.547e-05,2]
[347511927,1735895469142,-652.24,9.547e-05,2]
[347511928,1735895469151,-500.0,9.547e-05,2]
[347511929,1735895469160,-1282.35,9.547e-05,2]
[347511930,1735895469172,-500.0,9.547e-05,2]
[347511931,1735895469181,-1488.79,9.547e-05,2]
[347511932,1735895469191,-16219.48,9.547e-05,2]
[347511933,1735895469200,-500.0,9.547e-05,2]
[347511934,1735895469211,-897.64,9.547e-05,2]
[347511935,1735895469223,-1388.47,9.547e-05,2]
[347511936,1735895469232,-7839.83,9.547e-05,2]
[347511937,1735895469242,-585.14,9.547e-05,2]
[347511938,1735895469252,-4052.18,9.547e-05,2]
[347511939,1735895469261,-500.0,9.547e-05,2]
[347511940,1735895469270,-2169.39,9.547e-05,2]
[347511941,1735895469280,-8325.83551296,9.547e-05,2]
[347511942,1735895469302,-3983.27448704,9.547e-05,2]
[347511943,1735895469311,-500.0,9.547e-05,2]
[347511944,1735895469320,-2134.97,9.547e-05,2]
[347511945,1735895469330,-500.0,9.547e-05,2]
[347511946,1735895469339,-1153.95,9.547e-05,2]
[347511947,1735895469348,-5725.35,9.547e-05,2]
[347511948,1735895469358,-500.0,9.547e-05,2]
[347511949,1735895469368,-2979.59,9.547e-05,2]
[347511950,1735895469377,-2914.72,9.547e-05,2]
[347511951,1735895469387,-1364.87,9.547e-05,2]
[347511952,1735895469396,-7566.06,9.547e-05,2]
[347511953,1735895469405,-2399.32,9.547e-05,2]
[347511954,1735895469626,-603.21,9.547e-05,2]
[347511955,1735895469636,-1193.21,9.547e-05,2]
[347511956,1735895469645,-2750.41,9.547e-05,2]
[347511957,1735895469655,-500.0,9.547e-05,2]
[347511958,1735895469664,-7489.36,9.547e-05,2]
[347511959,1735895469673,-500.0,9.547e-05,2]
[347511960,1735895469683,-500.0,9.547e-05,2]
[347511961,1735895469693,-10887.3,9.547e-05,2]
[347511962,1735895469704,-500.0,9.547e-05,2]
[347511963,1735895469714,-3131.5,9.547e-05,2]
[347511964,1735895469725,-500.0,9.547e-05,2]
[347511965,1735895469735,-1122.57,9.547e-05,2]
[347511966,1735895469745,-5529.03,9.547e-05,2]
[347511967,1735895469754,-500.0,9.547e-05,2]
[347511968,1735895469763,-540.93,9.547e-05,2]
[347511969,1735895469775,-1133.66,9.547e-05,2]
[347511970,1735895469785,-500.0,9.547e-05,2]
[347511971,1735895469795,-1508.17,9.547e-05,2]
[347511972,1735895469804,-500.0,9.547e-05,2]
[347511973,1735895469813,-500.0,9.547e-05,2]
[347511974,1735895469823,-4067.65,9.547e-05,2]
[347511975,1735895469832,-1046.92,9.547e-05,2]
[347511976,1735895469841,-500.0,9.547e-05,2]
[347511977,1735895469851,-4338.03,9.547e-05,2]
[347511978,1735895469860,-861.66,9.547e-05,2]
[347511979,1735895469870,-500.0,9.547e-05,2]
[347511980,1735895469879,-1831.5,9.547e-05,2]
[347511981,1735895469888,-3799.9,9.547e-05,2]
[347511982,1735895469897,-500.0,9.547e-05,2]
[347511983,1735895469906,-500.0,9.547e-05,2]
[347511984,1735895469916,-500.0,9.547e-05,2]
[347511985,1735895469927,-2004.6,9.547e-05,2]
[347511986,1735895469937,-953.12,9.552e-05,2]
[347511987,1735895469946,-3049.47,9.557e-05,2]
[347511988,1735895469956,-3049.47,9.557e-05,2]
[347511989,1735895469968,-3098.25,9.557e-05,2]
[347511990,1735895469978,-3098.25,9.557e-05,2]
[347511991,1735895469988,-79601.36271116,9.558e-05,2]
[347511992,1735895470000,-2020.34821804,9.558e-05,2]
[347511993,1735895470013,-1209.449995,9.558e-05,2]
[347511994,1735895470024,-4002.45131748,9.558e-05,2]
[347511995,1735895470035,-4702.6365,9.558e-05,2]
[347511996,1735895470053,-253.78420159,9.558e-05,2]
[347511997,1735895480215,40000.0,0.00011002,7]
[347511998,1735895491341,150.0,0.00018841,120]
[347511999,1735895497844,50000.0,0.00011002,7]
[347512000,1735895498516,19171.6,7.012e-05,7]
[347512001,1735895516854,50000.0,0.00011002,7]
[347512003,1735895589984,50000.0,0.00011002,7]
[347512004,1735895615878,50000.0,0.00011002,7]
[347512005,1735895670039,7603.98785364,0.00011002,7]
[347512006,1735895731531,150.0,0.00016862,120]
[347512007,1735895851128,150.0,0.0001641,120]
[347512009,1735895911402,150.0,0.00018488,120]
[347512010,1735895918873,2037.4,0.0002,120]
[347512011,1735896270821,150.0,0.00019842,120]
[347512014,1735896326803,555.94149903,0.0002,120]
[347512022,1735896390796,150.0,0.00019733,120]
[347512023,1735896462896,732.0,0.00015,30]
[347512026,1735896517625,2043.0,0.0002,120]
[347512040,1735896632215,-200.0,7.795e-05,2]
[347512041,1735896632225,-250.0,7.854e-05,2]
[347512042,1735896632234,-302.1,7.881e-05,3]
[347512043,1735896632244,-374.39060709,7.888e-05,2]
[347512044,1735896632253,-1097.5,8.063e-05,2]
[347512045,1735896632262,-394.4,8.101e-05,2]
[347512046,1735896632272,-160.13,8.219e-05,2]
[347512047,1735896632282,-1000.0,8.219e-05,2]
[347512048,1735896632291,-688.99,8.219e-05,2]
[347512049,1735896632300,-250.0,8.219e-05,2]
[347512050,1735896632311,-1918.3,8.219e-05,2]
[347512051,1735896632320,-3200.0,8.22e-05,2]
[347512052,1735896632330,-250.0,8.265e-05,2]
[347512053,1735896632342,-244.18939291,8.294e-05,2]
[347512054,1735896632361,-23655.81060709,8.294e-05,2]
[347512055,1735896632371,-166.7,8.398e-05,2]
[347512056,1735896632380,-1057.0,8.479e-05,2]
[347512057,1735896632389,-150.0,8.581e-05,2]
[347512058,1735896632399,-150.0,8.581e-05,2]
[347512059,1735896632407,-150.0,8.581e-05,2]
[347512060,1735896632416,-150.0,8.581e-05,2]
[347512061,1735896632425,-150.0,8.66e-05,2]
[347512062,1735896632434,-150.0,8.687e-05,2]
[347512063,1735896632444,-150.0,8.74e-05,2]
[347512064,1735896632456,-150.0,8.772e-05,2]
[347512065,1735896632465,-150.0,8.793e-05,2]
[347512066,1735896632475,-150.0,8.819e-05,2]
[347512067,1735896632483,-150.0,8.899e-05,2]
[347512068,1735896632493,-150.0,8.899e-05,2]
[347512069,1735896632502,-1500.0,8.899e-05,2]
[347512070,1735896632511,-330.8905,8.899e-05,2]
[347512071,1735896632519,-1057.0,8.926e-05,2]
[347512072,1735896632528,-150.0,8.962e-05,2]
[347512073,1735896632537,-150.0,8.978e-05,2]
[347512074,1735896632546,-1302.69,8.996e-05,2]
[347512075,1735896632556,-996.73826304,8.996e-05,2]
[347512076,1735896634636,-1661.47568001,8.996e-05,2]
[347512077,1735896634700,-4201.63605695,8.996e-05,2]
[347512078,1735896634717,-7785.96394305,8.996e-05,2]
[347512087,1735896638188,-830.7264,8.996e-05,2]
[347512088,1735896638200,-2153.77965695,8.996e-05,2]
[347512089,1735896638214,-500.0,8.996e-05,2]
[347512090,1735896638223,-5555.31913551,8.996e-05,2]
[347512091,1735896638348,-1064.98086449,8.996e-05,2]
[347512092,1735896638358,-209.95625356,8.996e-05,2]
[347512093,1735896638370,-2196.65374644,8.996e-05,2]
[347512094,1735896638380,-1507.23181054,8.996e-05,2]
[347512095,1735896638392,-8019.14818946,8.996e-05,2]
[347512096,1735896638402,-1319.65,8.996e-05,2]
[347512097,1735896638411,-3394.22,8.996e-05,2]
[347512098,1735896638420,-569.95,8.996e-05,2]
[347512099,1735896638429,-686.86,8.996e-05,2]
[347512100,1735896638439,-807.68,8.996e-05,2]
[347512101,1735896638448,-500.0,8.996e-05,2]
[347512102,1735896638462,-1222.21,8.996e-05,2]
[347512103,1735896638472,-671.55,8.996e-05,2]
[347512104,1735896638482,-3398.46,8.997e-05,2]
[347512105,1735896638492,-2598.9,8.997e-05,2]
[347512106,1735896638502,-865.19,8.997e-05,2]
[347512107,1735896638511,-500.0,8.997e-05,2]
[347512108,1735896638520,-1690.73,8.997e-05,2]
[347512109,1735896638530,-2432.55,8.997e-05,2]
[347512110,1735896638539,-500.0,8.997e-05,2]
[347512111,1735896638549,-150.98357983,8.997e-05,2]
[347512112,1735896638559,-855.94,8.997e-05,2]
[347512113,1735896638568,-500.0,8.997e-05,2]
[347512114,1735896638578,-500.0,8.997e-05,2]
[347512115,1735896638587,-1427.84,8.997e-05,2]
[347512116,1735896638597,-566.75,8.997e-05,2]
[347512117,1735896638607,-2853.22,8.997e-05,2]
[347512118,1735896638617,-500.0,8.997e-05,2]
[347512120,1735896638627,-500.0,8.997e-05,2]
[347512121,1735896638636,-1087.84,8.997e-05,2]
[347512122,1735896638647,-2468.12,8.997e-05,2]
[347512123,1735896638657,-500.0,8.997e-05,2]
[347512124,1735896638666,-500.0,8.997e-05,2]
[347512125,1735896638676,-500.0,8.997e-05,2]
[347512126,1735896638686,-2440.79,8.997e-05,2]
[347512127,1735896638695,-527.90947784,8.997e-05,2]
[347512128,1735896638706,-3422.91,8.997e-05,2]
[347512129,1735896638719,-1830.59,8.997e-05,2]
[347512130,1735896638729,-560.95031517,8.997e-05,2]
[347512131,1735896638738,-1471.52,8.997e-05,2]
[347512132,1735896638748,-500.0,8.997e-05,2]
[347512133,1735896638758,-1397.65,8.997e-05,2]
[347512134,1735896638767,-500.0,8.997e-05,2]
[347512135,1735896638777,-2473.53,8.997e-05,2]
[347512136,1735896638788,-2824.45,8.997e-05,2]
[347512137,1735896638798,-1469.51,8.997e-05,2]
[347512138,1735896638807,-500.0,8.997e-05,2]
[347512139,1735896638816,-500.0,8.997e-05,2]
[347512140,1735896638826,-461.31746517,8.997e-05,2]
[347512141,1735896638835,-500.0,8.997e-05,2]
[347512142,1735896638845,-440.24106151,8.997e-05,2]
[347512143,1735896638855,-500.0,8.997e-05,2]
[347512144,1735896638864,-500.0,8.997e-05,2]
[347512145,1735896638874,-925.59,8.997e-05,2]
[347512146,1735896638883,-2345.72,8.997e-05,2]
[347512147,1735896638892,-500.0,8.997e-05,2]
[347512148,1735896638902,-1198.50741877,8.997e-05,2]
[347512149,1735896638915,-4332.96258123,8.997e-05,2]
[347512150,1735896638924,-1085.82,8.997e-05,2]
[347512151,1735896638934,-500.0,8.997e-05,2]
[347512152,1735896638945,-500.0,8.997e-05,2]
[347512153,1735896638954,-500.0,8.997e-05,2]
[347512154,1735896638963,-500.0,8.997e-05,2]
[347512155,1735896638973,-2731.09834877,8.997e-05,2]
[347512156,1735896639074,-1754.02,8.996e-05,2]
[347512157,1735896639083,-372.92165123,8.997e-05,2]
[347512158,1735896639093,-500.0,8.997e-05,2]
[347512159,1735896639102,-500.0,8.997e-05,2]
[347512160,1735896639112,-640.84,8.997e-05,2]